[Event "Titled Tuesday Blitz January 17 Late 2023"]
[White "Jaracz, Pawel"]
[Black "ArchibaldCerveza29"]
[WhiteFideId "1102222"]
[WhiteElo "2467"]
[BlackElo "2547"]
[Result "1/2-1/2"]
[Round "04"]
[TimeControl "180+2"]
[Date "2023.01.17"]
[WhiteClock "0:00:14"]
[BlackClock "0:00:05"]

1. d4 {[%clk 0:03:00]}  d5 {[%clk 0:02:59]} 2. c4 {[%clk 0:03:00]}  e6 {[%clk 0:02:59]} 3. Nc3 {[%clk 0:02:59]}  Nf6 {[%clk 0:02:59]} 4. Nf3 {[%clk 0:02:56]}  c6 {[%clk 0:02:57]} 5. cxd5 {[%clk 0:02:52]}  exd5 {[%clk 0:02:58]} 6. Bg5 {[%clk 0:02:52]}  h6 {[%clk 0:02:56]} 7. Bxf6 {[%clk 0:02:52]}  Qxf6 {[%clk 0:02:57]} 8. e3 {[%clk 0:02:52]}  Bd6 {[%clk 0:02:56]} 9. Bd3 {[%clk 0:02:51]}  Bg4 {[%clk 0:02:56]} 10. Be2 {[%clk 0:02:51]}  O-O {[%clk 0:02:55]} 11. O-O {[%clk 0:02:49]}  Nd7 {[%clk 0:02:54]} 12. Ne1 {[%clk 0:02:46]}  Bxe2 {[%clk 0:02:38]} 13. Qxe2 {[%clk 0:02:46]}  Rfe8 {[%clk 0:02:38]} 14. Rb1 {[%clk 0:02:35]}  a5 {[%clk 0:02:35]} 15. Nd3 {[%clk 0:02:29]}  Re6 {[%clk 0:02:13]} 16. Qg4 {[%clk 0:02:25]}  Rae8 {[%clk 0:02:06]} 17. a3 {[%clk 0:02:24]}  Nb6 {[%clk 0:02:00]} 18. Rfe1 {[%clk 0:02:10]}  Nc4 {[%clk 0:01:58]} 19. Re2 {[%clk 0:02:04]}  Qd8 {[%clk 0:01:41]} 20. a4 {[%clk 0:01:59]}  Rg6 {[%clk 0:01:38]} 21. Qh3 {[%clk 0:01:57]}  Bb4 {[%clk 0:01:22]} 22. Rc1 {[%clk 0:01:39]}  Rge6 {[%clk 0:01:16]} 23. b3 {[%clk 0:01:36]}  Nd6 {[%clk 0:01:08]} 24. Nxb4 {[%clk 0:00:59]}  axb4 {[%clk 0:01:08]} 25. Nd1 {[%clk 0:00:59]}  Ne4 {[%clk 0:01:05]} 26. f3 {[%clk 0:00:58]}  Nd6 {[%clk 0:00:56]} 27. Qg3 {[%clk 0:00:52]}  Nf5 {[%clk 0:00:51]} 28. Qf4 {[%clk 0:00:52]}  Qg5 {[%clk 0:00:40]} 29. Qxg5 {[%clk 0:00:33]}  hxg5 {[%clk 0:00:41]} 30. Kf2 {[%clk 0:00:31]}  Nxd4 {[%clk 0:00:39]} 31. Rb2 {[%clk 0:00:31]}  Nf5 {[%clk 0:00:35]} 32. Re2 {[%clk 0:00:31]}  g6 {[%clk 0:00:28]} 33. g4 {[%clk 0:00:31]}  Nd6 {[%clk 0:00:25]} 34. Nb2 {[%clk 0:00:30]}  f5 {[%clk 0:00:22]} 35. h3 {[%clk 0:00:29]}  d4 {[%clk 0:00:21]} 36. Rce1 {[%clk 0:00:25]}  dxe3+ {[%clk 0:00:17]} 37. Rxe3 {[%clk 0:00:26]}  Kf7 {[%clk 0:00:18]} 38. Nd3 {[%clk 0:00:25]}  Rxe3 {[%clk 0:00:15]} 39. Rxe3 {[%clk 0:00:25]}  Rxe3 {[%clk 0:00:16]} 40. Kxe3 {[%clk 0:00:25]}  Ke6 {[%clk 0:00:14]} 41. Nxb4 {[%clk 0:00:25]}  Ke5 {[%clk 0:00:14]} 42. Nd3+ {[%clk 0:00:22]}  Kd5 {[%clk 0:00:15]} 43. f4 {[%clk 0:00:22]}  fxg4 {[%clk 0:00:13]} 44. hxg4 {[%clk 0:00:22]}  gxf4+ {[%clk 0:00:14]} 45. Nxf4+ {[%clk 0:00:22]}  Kc5 {[%clk 0:00:13]} 46. Kd3 {[%clk 0:00:20]}  Kb4 {[%clk 0:00:12]} 47. Kc2 {[%clk 0:00:20]}  g5 {[%clk 0:00:12]} 48. Ne6 {[%clk 0:00:21]}  Ne4 {[%clk 0:00:13]} 49. Nxg5 {[%clk 0:00:14]}  Nxg5 {[%clk 0:00:12]} 50. Kb2 {[%clk 0:00:11]}  b6 {[%clk 0:00:12]} 51. Kc2 {[%clk 0:00:11]}  Nf7 {[%clk 0:00:12]} 52. Kb2 {[%clk 0:00:11]}  Kc5 {[%clk 0:00:10]} 53. Kc3 {[%clk 0:00:11]}  Kd5 {[%clk 0:00:11]} 54. b4 {[%clk 0:00:12]}  Ke5 {[%clk 0:00:11]} 55. a5 {[%clk 0:00:12]}  bxa5 {[%clk 0:00:11]} 56. bxa5 {[%clk 0:00:13]}  Nd6 {[%clk 0:00:12]} 57. a6 {[%clk 0:00:13]}  Kf4 {[%clk 0:00:09]} 58. Kd4 {[%clk 0:00:13]}  Nb5+ {[%clk 0:00:07]} 59. Kc5 {[%clk 0:00:13]}  Kxg4 {[%clk 0:00:08]} 60. Kxc6 {[%clk 0:00:13]}  Na7+ {[%clk 0:00:07]} 61. Kb7 {[%clk 0:00:13]}  Nb5 {[%clk 0:00:08]} 62. Kb6 {[%clk 0:00:13]}  Nd6 {[%clk 0:00:07]} 63. Kc6 {[%clk 0:00:13]}  Nc8 {[%clk 0:00:07]} 64. Kd7 {[%clk 0:00:12]}  Na7 {[%clk 0:00:06]} 65. Kc7 {[%clk 0:00:13]}  Kf5 {[%clk 0:00:05]} 66. Kb7 {[%clk 0:00:13]}  Nb5 {[%clk 0:00:06]} 67. Kb6 {[%clk 0:00:12]}  Nd6 {[%clk 0:00:06]} 68. Kc6 {[%clk 0:00:13]}  Nc8 {[%clk 0:00:06]} 69. Kb7 {[%clk 0:00:13]}  Nd6+ {[%clk 0:00:06]} 70. Kb8 {[%clk 0:00:13]}  Nb5 {[%clk 0:00:06]} 71. a7 {[%clk 0:00:14]}  Nxa7 {[%clk 0:00:05]} 1/2-1/2


[Site "https://www.chess.com"]

[Event "Titled Tuesday Blitz January 17 Late 2023"]
[White "Przybylski, Wojciech"]
[Black "Fernandez Guillen, Ernesto J."]
[WhiteFideId "1117599"]
[BlackFideId "3512428"]
[WhiteElo "2321"]
[BlackElo "2477"]
[Result "0-1"]
[Round "04"]
[TimeControl "180+2"]
[Date "2023.01.17"]
[WhiteClock "0:00:04"]
[BlackClock "0:00:22"]

1. e4 {[%clk 0:03:00]}  e5 {[%clk 0:02:58]} 2. Nf3 {[%clk 0:03:00]}  Nc6 {[%clk 0:02:57]} 3. Bb5 {[%clk 0:03:01]}  f5 {[%clk 0:02:54]} 4. d3 {[%clk 0:02:59]}  fxe4 {[%clk 0:02:49]} 5. dxe4 {[%clk 0:02:59]}  Nf6 {[%clk 0:02:48]} 6. Nc3 {[%clk 0:02:58]}  Bb4 {[%clk 0:02:45]} 7. O-O {[%clk 0:02:55]}  Bxc3 {[%clk 0:02:45]} 8. bxc3 {[%clk 0:02:55]}  d6 {[%clk 0:02:45]} 9. h3 {[%clk 0:02:47]}  O-O {[%clk 0:02:43]} 10. Ng5 {[%clk 0:02:39]}  Kh8 {[%clk 0:02:32]} 11. Bc4 {[%clk 0:02:35]}  Qe7 {[%clk 0:02:27]} 12. f4 {[%clk 0:02:27]}  exf4 {[%clk 0:02:26]} 13. Rxf4 {[%clk 0:02:26]}  Ne5 {[%clk 0:02:16]} 14. Bb3 {[%clk 0:02:20]}  h6 {[%clk 0:02:16]} 15. Nf3 {[%clk 0:01:59]}  Ng6 {[%clk 0:02:16]} 16. Nh4 {[%clk 0:01:46]}  Nxf4 {[%clk 0:02:10]} 17. Bxf4 {[%clk 0:01:46]}  Qxe4 {[%clk 0:02:06]} 18. Qd2 {[%clk 0:01:37]}  d5 {[%clk 0:01:08]} 19. Re1 {[%clk 0:01:33]}  Qh7 {[%clk 0:01:08]} 20. Bxc7 {[%clk 0:01:13]}  g5 {[%clk 0:01:08]} 21. Bd6 {[%clk 0:01:09]}  Bxh3 {[%clk 0:00:54]} 22. Nf3 {[%clk 0:00:35]}  Rfe8 {[%clk 0:00:39]} 23. Rxe8+ {[%clk 0:00:24]}  Rxe8 {[%clk 0:00:38]} 24. gxh3 {[%clk 0:00:24]}  Qf5 {[%clk 0:00:37]} 25. Kg2 {[%clk 0:00:19]}  g4 {[%clk 0:00:36]} 26. Nh4 {[%clk 0:00:09]}  gxh3+ {[%clk 0:00:20]} 27. Kh2 {[%clk 0:00:09]}  Qg5 {[%clk 0:00:20]} 28. Qf2 {[%clk 0:00:07]}  Ng4+ {[%clk 0:00:20]} 29. Kg3 {[%clk 0:00:02]}  Nxf2+ {[%clk 0:00:19]} 30. Kxf2 {[%clk 0:00:03]}  Qxh4+ {[%clk 0:00:19]} 31. Bg3 {[%clk 0:00:03]}  Rf8+ {[%clk 0:00:19]} 32. Ke2 {[%clk 0:00:03]}  Qxg3 {[%clk 0:00:20]} 33. Bxd5 {[%clk 0:00:04]}  h2 {[%clk 0:00:20]} 34. Be4 {[%clk 0:00:03]}  Rf2+ {[%clk 0:00:21]} 35. Kd1 {[%clk 0:00:04]}  Qg1# {[%clk 0:00:22]} 0-1


[Site "https://www.chess.com"]

[Event "Titled Tuesday Blitz January 17 Late 2023"]
[White "Dimitrov, Atanas"]
[Black "TheKnightOfBosnia"]
[WhiteFideId "2901315"]
[WhiteElo "2269"]
[BlackElo "2530"]
[Result "1-0"]
[Round "04"]
[TimeControl "180+2"]
[Date "2023.01.17"]
[WhiteClock "0:00:03"]
[BlackClock "0:00:01"]

1. Nf3 {[%clk 0:02:58]}  Nf6 {[%clk 0:03:00]} 2. c4 {[%clk 0:02:58]}  e6 {[%clk 0:03:00]} 3. Nc3 {[%clk 0:02:59]}  d5 {[%clk 0:03:00]} 4. e3 {[%clk 0:02:59]}  a6 {[%clk 0:02:57]} 5. b3 {[%clk 0:02:59]}  c6 {[%clk 0:02:57]} 6. Bb2 {[%clk 0:02:59]}  Be7 {[%clk 0:02:55]} 7. Be2 {[%clk 0:02:59]}  b5 {[%clk 0:02:56]} 8. O-O {[%clk 0:02:59]}  O-O {[%clk 0:02:56]} 9. Rc1 {[%clk 0:02:57]}  Nbd7 {[%clk 0:02:55]} 10. d4 {[%clk 0:02:52]}  bxc4 {[%clk 0:02:44]} 11. bxc4 {[%clk 0:02:52]}  dxc4 {[%clk 0:02:43]} 12. Bxc4 {[%clk 0:02:52]}  Rb8 {[%clk 0:02:35]} 13. Ba1 {[%clk 0:02:51]}  c5 {[%clk 0:02:29]} 14. Qe2 {[%clk 0:02:48]}  cxd4 {[%clk 0:02:27]} 15. Nxd4 {[%clk 0:02:47]}  Qb6 {[%clk 0:01:38]} 16. Rb1 {[%clk 0:02:40]}  Qd6 {[%clk 0:01:27]} 17. Rbd1 {[%clk 0:02:32]}  Qb6 {[%clk 0:01:20]} 18. Nb3 {[%clk 0:01:59]}  Ne5 {[%clk 0:01:18]} 19. Na4 {[%clk 0:01:57]}  Qc7 {[%clk 0:01:16]} 20. Rc1 {[%clk 0:01:43]}  Nxc4 {[%clk 0:01:15]} 21. Rxc4 {[%clk 0:01:43]}  Qb7 {[%clk 0:01:04]} 22. Rfc1 {[%clk 0:01:42]}  Bd7 {[%clk 0:01:00]} 23. Nac5 {[%clk 0:01:40]}  Qc8 {[%clk 0:00:49]} 24. Nxe6 {[%clk 0:01:10]}  Bxe6 {[%clk 0:00:35]} 25. Rxc8 {[%clk 0:01:10]}  Rfxc8 {[%clk 0:00:36]} 26. Rxc8+ {[%clk 0:00:59]}  Bxc8 {[%clk 0:00:34]} 27. h3 {[%clk 0:00:56]}  h6 {[%clk 0:00:34]} 28. Be5 {[%clk 0:00:53]}  Rb5 {[%clk 0:00:32]} 29. Bd4 {[%clk 0:00:54]}  Be6 {[%clk 0:00:31]} 30. Qc2 {[%clk 0:00:51]}  Bd5 {[%clk 0:00:26]} 31. Nd2 {[%clk 0:00:48]}  Ra5 {[%clk 0:00:22]} 32. Nc4 {[%clk 0:00:33]}  Rb5 {[%clk 0:00:16]} 33. Nb6 {[%clk 0:00:28]}  Be6 {[%clk 0:00:15]} 34. a4 {[%clk 0:00:28]}  Rb4 {[%clk 0:00:15]} 35. a5 {[%clk 0:00:29]}  Rb5 {[%clk 0:00:14]} 36. Qc7 {[%clk 0:00:24]}  Bf8 {[%clk 0:00:08]} 37. Na4 {[%clk 0:00:09]}  Ne4 {[%clk 0:00:08]} 38. g3 {[%clk 0:00:08]}  Rb1+ {[%clk 0:00:08]} 39. Kg2 {[%clk 0:00:07]}  Rb5 {[%clk 0:00:08]} 40. Nc3 {[%clk 0:00:07]}  Nxc3 {[%clk 0:00:07]} 41. Qxc3 {[%clk 0:00:07]}  Bb4 {[%clk 0:00:07]} 42. Qb2 {[%clk 0:00:06]}  Bxa5 {[%clk 0:00:06]} 43. Qa1 {[%clk 0:00:06]}  f6 {[%clk 0:00:03]} 44. Qc1 {[%clk 0:00:05]}  Bd8 {[%clk 0:00:02]} 45. g4 {[%clk 0:00:04]}  Rd5 {[%clk 0:00:03]} 46. Qc6 {[%clk 0:00:04]}  Kf7 {[%clk 0:00:02]} 47. Qxa6 {[%clk 0:00:04]}  Be7 {[%clk 0:00:03]} 48. Qb7 {[%clk 0:00:04]}  h5 {[%clk 0:00:02]} 49. gxh5 {[%clk 0:00:04]}  Rxh5 {[%clk 0:00:01]} 50. Qc7 {[%clk 0:00:04]}  Bxh3+ {[%clk 0:00:01]} 51. Kg1 {[%clk 0:00:05]}  Be6 {[%clk 0:00:01]} 52. f4 {[%clk 0:00:04]}  Bd5 {[%clk 0:00:01]} 53. Kf2 {[%clk 0:00:04]}  f5 {[%clk 0:00:01]} 54. Bc5 {[%clk 0:00:03]} 1-0


[Site "https://www.chess.com"]

[Event "Titled Tuesday Blitz January 17 Late 2023"]
[White "Djordjevic, Vuk"]
[Black "Souleidis, Georgios"]
[WhiteFideId "902098"]
[BlackFideId "4206827"]
[WhiteElo "2375"]
[BlackElo "2419"]
[Result "1-0"]
[Round "04"]
[TimeControl "180+2"]
[Date "2023.01.17"]
[WhiteClock "0:01:14"]
[BlackClock "0:00:01"]

1. e4 {[%clk 0:03:00]}  c5 {[%clk 0:02:59]} 2. Nc3 {[%clk 0:03:00]}  Nc6 {[%clk 0:02:57]} 3. g3 {[%clk 0:03:01]}  e6 {[%clk 0:02:53]} 4. Bg2 {[%clk 0:03:01]}  Nge7 {[%clk 0:02:50]} 5. d3 {[%clk 0:03:01]}  d5 {[%clk 0:02:48]} 6. f4 {[%clk 0:02:59]}  g6 {[%clk 0:02:41]} 7. Nf3 {[%clk 0:02:58]}  Bg7 {[%clk 0:02:41]} 8. O-O {[%clk 0:02:58]}  O-O {[%clk 0:02:41]} 9. e5 {[%clk 0:02:42]}  Rb8 {[%clk 0:02:35]} 10. Ne2 {[%clk 0:02:33]}  d4 {[%clk 0:02:29]} 11. c3 {[%clk 0:02:33]}  dxc3 {[%clk 0:02:23]} 12. bxc3 {[%clk 0:02:32]}  b6 {[%clk 0:02:22]} 13. Ba3 {[%clk 0:02:27]}  Nd5 {[%clk 0:02:08]} 14. Qd2 {[%clk 0:02:26]}  Ba6 {[%clk 0:02:04]} 15. Rac1 {[%clk 0:02:21]}  Re8 {[%clk 0:01:54]} 16. Rfd1 {[%clk 0:02:17]}  Rc8 {[%clk 0:01:37]} 17. g4 {[%clk 0:02:12]}  Qd7 {[%clk 0:01:32]} 18. Ng3 {[%clk 0:02:11]}  Na5 {[%clk 0:01:17]} 19. Ne4 {[%clk 0:02:09]}  Qa4 {[%clk 0:01:08]} 20. Bb2 {[%clk 0:01:59]}  Nb7 {[%clk 0:01:03]} 21. c4 {[%clk 0:01:52]}  Nb4 {[%clk 0:00:57]} 22. Rc3 {[%clk 0:01:50]}  Qd7 {[%clk 0:00:45]} 23. Ra3 {[%clk 0:01:42]}  Na5 {[%clk 0:00:29]} 24. Bc3 {[%clk 0:01:42]}  Nac6 {[%clk 0:00:23]} 25. Nd6 {[%clk 0:01:40]}  Bb7 {[%clk 0:00:22]} 26. Ng5 {[%clk 0:01:34]}  Rf8 {[%clk 0:00:15]} 27. Nxc8 {[%clk 0:01:26]}  Bxc8 {[%clk 0:00:14]} 28. d4 {[%clk 0:01:22]}  a5 {[%clk 0:00:01]} 29. dxc5 {[%clk 0:01:14]} 1-0


[Site "https://www.chess.com"]

[Event "Titled Tuesday Blitz January 17 Late 2023"]
[White "Nazari, Arad"]
[Black "Mendez Fortes, Eduardo Jesus"]
[WhiteFideId "12577324"]
[BlackFideId "3502376"]
[WhiteElo "2367"]
[BlackElo "2250"]
[Result "1/2-1/2"]
[Round "04"]
[TimeControl "180+2"]
[Date "2023.01.17"]
[WhiteClock "0:00:05"]
[BlackClock "0:00:04"]

1. e4 {[%clk 0:03:00]}  e5 {[%clk 0:02:59]} 2. f4 {[%clk 0:02:59]}  d5 {[%clk 0:02:53]} 3. exd5 {[%clk 0:02:59]}  exf4 {[%clk 0:02:53]} 4. Nf3 {[%clk 0:02:59]}  Nf6 {[%clk 0:02:53]} 5. Bb5+ {[%clk 0:03:00]}  c6 {[%clk 0:02:52]} 6. dxc6 {[%clk 0:03:00]}  bxc6 {[%clk 0:02:53]} 7. Bc4 {[%clk 0:02:59]}  Bd6 {[%clk 0:02:53]} 8. Qe2+ {[%clk 0:02:59]}  Kf8 {[%clk 0:02:48]} 9. O-O {[%clk 0:02:18]}  Nbd7 {[%clk 0:02:47]} 10. d4 {[%clk 0:02:17]}  Nb6 {[%clk 0:02:47]} 11. Bb3 {[%clk 0:02:17]}  a5 {[%clk 0:02:44]} 12. c4 {[%clk 0:02:10]}  a4 {[%clk 0:02:30]} 13. Bc2 {[%clk 0:02:08]}  c5 {[%clk 0:02:28]} 14. d5 {[%clk 0:02:04]}  Ra7 {[%clk 0:02:27]} 15. Na3 {[%clk 0:01:59]}  Re7 {[%clk 0:02:25]} 16. Qd3 {[%clk 0:01:55]}  Bd7 {[%clk 0:01:51]} 17. b3 {[%clk 0:01:51]}  Ng4 {[%clk 0:01:42]} 18. bxa4 {[%clk 0:01:41]}  Ne3 {[%clk 0:01:40]} 19. Re1 {[%clk 0:01:34]}  Nxc2 {[%clk 0:01:18]} 20. Nxc2 {[%clk 0:01:35]}  Bxa4 {[%clk 0:01:14]} 21. Bd2 {[%clk 0:01:29]}  f6 {[%clk 0:00:48]} 22. Rab1 {[%clk 0:01:26]}  Rxe1+ {[%clk 0:00:45]} 23. Rxe1 {[%clk 0:01:25]}  Kf7 {[%clk 0:00:40]} 24. Re6 {[%clk 0:01:22]}  Re8 {[%clk 0:00:29]} 25. Qxh7 {[%clk 0:00:54]}  Nxc4 {[%clk 0:00:24]} 26. Bc3 {[%clk 0:00:35]}  Be5 {[%clk 0:00:07]} 27. Bxe5 {[%clk 0:00:19]}  Nxe5 {[%clk 0:00:05]} 28. Nxe5+ {[%clk 0:00:17]}  fxe5 {[%clk 0:00:05]} 29. Qg6+ {[%clk 0:00:12]}  Kf8 {[%clk 0:00:05]} 30. Ne1 {[%clk 0:00:09]}  Qxd5 {[%clk 0:00:02]} 31. Qf5+ {[%clk 0:00:04]}  Kg8 {[%clk 0:00:02]} 32. Rxe8+ {[%clk 0:00:04]}  Bxe8 {[%clk 0:00:03]} 33. Nf3 {[%clk 0:00:05]}  Qd1+ {[%clk 0:00:03]} 34. Kf2 {[%clk 0:00:05]}  Qd5 {[%clk 0:00:01]} 35. Qxe5 {[%clk 0:00:03]}  Qxa2+ {[%clk 0:00:01]} 36. Kf1 {[%clk 0:00:04]}  Qb1+ {[%clk 0:00:01]} 37. Kf2 {[%clk 0:00:04]}  Qc2+ {[%clk 0:00:02]} 38. Ke1 {[%clk 0:00:02]}  Bb5 {[%clk 0:00:02]} 39. Qb8+ {[%clk 0:00:02]}  Kh7 {[%clk 0:00:03]} 40. Ng5+ {[%clk 0:00:02]}  Kg6 {[%clk 0:00:02]} 41. Qd6+ {[%clk 0:00:01]}  Kxg5 {[%clk 0:00:02]} 42. Qe5+ {[%clk 0:00:02]}  Qf5 {[%clk 0:00:03]} 43. Qxg7+ {[%clk 0:00:02]}  Qg6 {[%clk 0:00:02]} 44. Qe7+ {[%clk 0:00:03]}  Kh5 {[%clk 0:00:02]} 45. Qxc5+ {[%clk 0:00:03]}  Qg5 {[%clk 0:00:02]} 46. Qd4 {[%clk 0:00:03]}  Qg4 {[%clk 0:00:01]} 47. Qh8+ {[%clk 0:00:04]}  Kg5 {[%clk 0:00:02]} 48. Qg7+ {[%clk 0:00:04]}  Kf5 {[%clk 0:00:02]} 49. Qf7+ {[%clk 0:00:04]}  Kg5 {[%clk 0:00:02]} 50. Qe7+ {[%clk 0:00:04]}  Kh5 {[%clk 0:00:02]} 51. Qh7+ {[%clk 0:00:04]}  Kg5 {[%clk 0:00:03]} 52. Qe7+ {[%clk 0:00:04]}  Kh6 {[%clk 0:00:03]} 53. Qf6+ {[%clk 0:00:04]}  Qg6 {[%clk 0:00:03]} 54. Qh8+ {[%clk 0:00:04]}  Kg5 {[%clk 0:00:04]} 55. Qe5+ {[%clk 0:00:05]}  Qf5 {[%clk 0:00:04]} 56. h4+ {[%clk 0:00:05]}  Kg4 {[%clk 0:00:04]} 57. Qg7+ {[%clk 0:00:05]}  Kxh4 {[%clk 0:00:03]} 58. Qh6+ {[%clk 0:00:06]}  Kg3 {[%clk 0:00:04]} 59. Qg7+ {[%clk 0:00:06]}  Kh2 {[%clk 0:00:04]} 60. Kf2 {[%clk 0:00:04]}  Qc2+ {[%clk 0:00:03]} 61. Kf3 {[%clk 0:00:05]}  Qd3+ {[%clk 0:00:02]} 62. Kxf4 {[%clk 0:00:05]}  Qd2+ {[%clk 0:00:03]} 63. Kf5 {[%clk 0:00:03]}  Bd3+ {[%clk 0:00:04]} 64. Kf6 {[%clk 0:00:03]}  Qc3+ {[%clk 0:00:04]} 65. Kf7 {[%clk 0:00:03]}  Bc4+ {[%clk 0:00:05]} 66. Kg6 {[%clk 0:00:04]}  Qg3+ {[%clk 0:00:05]} 67. Kf6 {[%clk 0:00:04]}  Qf4+ {[%clk 0:00:05]} 68. Ke7 {[%clk 0:00:03]}  Qc7+ {[%clk 0:00:05]} 69. Kf6 {[%clk 0:00:03]}  Qd6+ {[%clk 0:00:05]} 70. Kg5 {[%clk 0:00:04]}  Qd2+ {[%clk 0:00:05]} 71. Kf6 {[%clk 0:00:04]}  Qf4+ {[%clk 0:00:05]} 72. Ke7 {[%clk 0:00:04]}  Qe4+ {[%clk 0:00:06]} 73. Kf6 {[%clk 0:00:04]}  Qe6+ {[%clk 0:00:05]} 74. Kg5 {[%clk 0:00:05]}  Bd3 {[%clk 0:00:05]} 75. Qc7+ {[%clk 0:00:04]}  Kh1 {[%clk 0:00:05]} 76. Kf4 {[%clk 0:00:03]}  Qe4+ {[%clk 0:00:04]} 77. Kg3 {[%clk 0:00:03]}  Qe3+ {[%clk 0:00:04]} 78. Kg4 {[%clk 0:00:04]}  Be2+ {[%clk 0:00:04]} 79. Kf5 {[%clk 0:00:05]}  Bd3+ {[%clk 0:00:03]} 80. Kf6 {[%clk 0:00:05]}  Qh6+ {[%clk 0:00:03]} 81. Ke7 {[%clk 0:00:04]}  Qg7+ {[%clk 0:00:04]} 82. Kd6 {[%clk 0:00:05]}  Qg3+ {[%clk 0:00:04]} 83. Kc6 {[%clk 0:00:05]}  Bb5+ {[%clk 0:00:03]} 84. Kb6 {[%clk 0:00:05]}  Qxc7+ {[%clk 0:00:03]} 85. Kxc7 {[%clk 0:00:05]}  Kxg2 {[%clk 0:00:04]} 1/2-1/2


[Site "https://www.chess.com"]

[Event "Titled Tuesday Blitz January 17 Late 2023"]
[White "Munoz, Francisco Javier"]
[Black "Timmermans, Mark"]
[WhiteFideId "128368"]
[BlackFideId "1026399"]
[WhiteElo "2389"]
[BlackElo "2392"]
[Result "0-1"]
[Round "04"]
[TimeControl "180+2"]
[Date "2023.01.17"]
[WhiteClock "0:00:09"]
[BlackClock "0:00:15"]

1. e4 {[%clk 0:02:55]}  e5 {[%clk 0:02:59]} 2. Nc3 {[%clk 0:02:56]}  Nf6 {[%clk 0:02:59]} 3. f4 {[%clk 0:02:55]}  d5 {[%clk 0:02:59]} 4. fxe5 {[%clk 0:02:55]}  Nxe4 {[%clk 0:02:58]} 5. Nf3 {[%clk 0:02:55]}  Bg4 {[%clk 0:02:58]} 6. d4 {[%clk 0:02:52]}  Bb4 {[%clk 0:02:43]} 7. Bd2 {[%clk 0:02:51]}  Bxf3 {[%clk 0:02:37]} 8. Qxf3 {[%clk 0:02:49]}  Nxd2 {[%clk 0:02:33]} 9. Kxd2 {[%clk 0:02:49]}  Nc6 {[%clk 0:02:32]} 10. Bb5 {[%clk 0:02:49]}  O-O {[%clk 0:02:11]} 11. Bxc6 {[%clk 0:02:44]}  bxc6 {[%clk 0:02:12]} 12. Rad1 {[%clk 0:02:26]}  Ba5 {[%clk 0:02:09]} 13. Kc1 {[%clk 0:02:24]}  Rb8 {[%clk 0:02:05]} 14. b3 {[%clk 0:01:57]}  Qe7 {[%clk 0:02:00]} 15. Kb1 {[%clk 0:01:53]}  Bb4 {[%clk 0:01:54]} 16. h4 {[%clk 0:01:50]}  f6 {[%clk 0:01:52]} 17. exf6 {[%clk 0:01:15]}  Rxf6 {[%clk 0:01:53]} 18. Qd3 {[%clk 0:01:15]}  Re6 {[%clk 0:01:53]} 19. Na4 {[%clk 0:01:12]}  a5 {[%clk 0:01:53]} 20. h5 {[%clk 0:01:11]}  h6 {[%clk 0:01:49]} 21. g3 {[%clk 0:01:09]}  Re3 {[%clk 0:01:39]} 22. Qg6 {[%clk 0:01:03]}  Qd6 {[%clk 0:01:40]} 23. Rhf1 {[%clk 0:00:30]}  Qxg6 {[%clk 0:01:39]} 24. hxg6 {[%clk 0:00:31]}  Rxg3 {[%clk 0:01:39]} 25. Rf7 {[%clk 0:00:31]}  Bd6 {[%clk 0:01:38]} 26. Rd7 {[%clk 0:00:23]}  Rxg6 {[%clk 0:01:38]} 27. Nc5 {[%clk 0:00:23]}  h5 {[%clk 0:01:26]} 28. Rh1 {[%clk 0:00:20]}  Bxc5 {[%clk 0:01:11]} 29. dxc5 {[%clk 0:00:18]}  Rh6 {[%clk 0:01:12]} 30. Rg1 {[%clk 0:00:16]}  Kh8 {[%clk 0:01:02]} 31. Rxc7 {[%clk 0:00:11]}  h4 {[%clk 0:01:02]} 32. Rcxg7 {[%clk 0:00:11]}  h3 {[%clk 0:01:02]} 33. R7g3 {[%clk 0:00:07]}  h2 {[%clk 0:00:59]} 34. Rh1 {[%clk 0:00:08]}  Rg8 {[%clk 0:00:58]} 35. Rxg8+ {[%clk 0:00:08]}  Kxg8 {[%clk 0:00:59]} 36. Kc1 {[%clk 0:00:07]}  Kf7 {[%clk 0:00:59]} 37. Kd2 {[%clk 0:00:07]}  Ke6 {[%clk 0:00:59]} 38. Ke2 {[%clk 0:00:08]}  d4 {[%clk 0:00:59]} 39. Kf3 {[%clk 0:00:07]}  Kd5 {[%clk 0:00:59]} 40. Kg2 {[%clk 0:00:07]}  Kxc5 {[%clk 0:00:59]} 41. a3 {[%clk 0:00:07]}  a4 {[%clk 0:00:39]} 42. bxa4 {[%clk 0:00:07]}  Kb6 {[%clk 0:00:33]} 43. Kf3 {[%clk 0:00:07]}  Ka5 {[%clk 0:00:30]} 44. Ke4 {[%clk 0:00:07]}  Rh4+ {[%clk 0:00:31]} 45. Kd3 {[%clk 0:00:07]}  Kxa4 {[%clk 0:00:31]} 46. c3 {[%clk 0:00:08]}  dxc3 {[%clk 0:00:28]} 47. Kxc3 {[%clk 0:00:09]}  Kb5 {[%clk 0:00:22]} 48. Kb3 {[%clk 0:00:09]}  Rh3+ {[%clk 0:00:21]} 49. Kc2 {[%clk 0:00:09]}  Ka4 {[%clk 0:00:19]} 50. Kb2 {[%clk 0:00:10]}  c5 {[%clk 0:00:19]} 51. Ka2 {[%clk 0:00:08]}  c4 {[%clk 0:00:20]} 52. Kb2 {[%clk 0:00:09]}  Kb5 {[%clk 0:00:20]} 53. Kc2 {[%clk 0:00:09]}  Rxa3 {[%clk 0:00:19]} 54. Kb2 {[%clk 0:00:08]}  Rh3 {[%clk 0:00:19]} 55. Kc2 {[%clk 0:00:09]}  Kc5 {[%clk 0:00:17]} 56. Kd2 {[%clk 0:00:09]}  c3+ {[%clk 0:00:15]} 57. Kc2 {[%clk 0:00:09]}  Kc4 {[%clk 0:00:16]} 58. Kb1 {[%clk 0:00:09]}  Kb3 {[%clk 0:00:15]} 59. Kc1 {[%clk 0:00:09]}  Rg3 {[%clk 0:00:15]} 0-1


[Site "https://www.chess.com"]

[Event "Titled Tuesday Blitz January 17 Late 2023"]
[White "Martinez Reyes, Pedro Ramon"]
[Black "Bazeev, German"]
[WhiteFideId "3901807"]
[BlackFideId "24119350"]
[WhiteElo "2376"]
[BlackElo "2369"]
[Result "1-0"]
[Round "04"]
[TimeControl "180+2"]
[Date "2023.01.17"]
[WhiteClock "0:01:56"]
[BlackClock "0:00:30"]

1. e4 {[%clk 0:03:00]}  c5 {[%clk 0:02:56]} 2. Nf3 {[%clk 0:03:00]}  Nf6 {[%clk 0:02:57]} 3. e5 {[%clk 0:03:00]}  Nd5 {[%clk 0:02:57]} 4. b3 {[%clk 0:02:56]}  Nc6 {[%clk 0:02:51]} 5. Bb2 {[%clk 0:02:55]}  e6 {[%clk 0:02:50]} 6. Bb5 {[%clk 0:02:55]}  Be7 {[%clk 0:02:48]} 7. O-O {[%clk 0:02:51]}  g5 {[%clk 0:02:46]} 8. Bxc6 {[%clk 0:02:46]}  dxc6 {[%clk 0:02:40]} 9. d3 {[%clk 0:02:43]}  Qc7 {[%clk 0:02:12]} 10. Nfd2 {[%clk 0:02:39]}  Rg8 {[%clk 0:01:58]} 11. Ne4 {[%clk 0:02:39]}  g4 {[%clk 0:01:57]} 12. Nbd2 {[%clk 0:02:33]}  b5 {[%clk 0:01:53]} 13. a4 {[%clk 0:02:33]}  Bd7 {[%clk 0:01:51]} 14. Kh1 {[%clk 0:02:19]}  h5 {[%clk 0:01:45]} 15. Qe2 {[%clk 0:02:19]}  h4 {[%clk 0:01:44]} 16. Nf6+ {[%clk 0:02:18]}  Bxf6 {[%clk 0:01:40]} 17. exf6 {[%clk 0:02:19]}  h3 {[%clk 0:01:40]} 18. g3 {[%clk 0:02:17]}  a5 {[%clk 0:00:55]} 19. Be5 {[%clk 0:02:14]}  Qb6 {[%clk 0:00:45]} 20. Ne4 {[%clk 0:02:14]}  Kd8 {[%clk 0:00:40]} 21. c4 {[%clk 0:02:05]}  Nb4 {[%clk 0:00:39]} 22. Rac1 {[%clk 0:01:57]}  bxa4 {[%clk 0:00:39]} 23. bxa4 {[%clk 0:01:57]}  Be8 {[%clk 0:00:30]} 24. Bd6 {[%clk 0:01:56]} 1-0


[Site "https://www.chess.com"]